fUSD/lending_fUSD_20250521
["ID","MTS","AMOUNT","RATE_DAILY","PERIOD"]
[361802340,1747816246643,-150.052117,0.00035448,120]
[361802341,1747816246653,-151.0,0.0003545,7]
[361802342,1747816246663,-151.0,0.0003545,7]
[361802343,1747816246672,-151.0,0.0003545,7]
[361802344,1747816246682,-154.366455,0.0003545,7]
[361802345,1747816246692,-151.0,0.0003545,7]
[361802346,1747816246703,-151.0,0.0003545,7]
[361802347,1747816246712,-151.841595,0.0003545,7]
[361802348,1747816246722,-152.91592,0.0003545,7]
[361802349,1747816246731,-151.0,0.0003545,7]
[361802350,1747816246741,-168.99989,0.0003545,7]
[361802351,1747816246750,-151.0,0.0003545,7]
[361802352,1747816246760,-168.99989,0.0003545,7]
[361802353,1747816246769,-781.96717609,0.00035452,2]
[361802354,1747816246779,-1262.8542,0.00035458,2]
[361802355,1747816246789,-8635.63265224,0.0003546,2]
[361802356,1747816246799,-150.052117,0.00035478,120]
[361802357,1747816246809,-4578.8999,0.00035485,2]
[361802358,1747816246818,-150.052117,0.00035488,120]
[361802359,1747816246827,-283.53,0.0003549,2]
[361802360,1747816246839,-150.052117,0.00035498,120]
[361802361,1747816246848,-4927.87500078,0.00035499,2]
[361802362,1747816246860,-3798.0,0.000355,7]
[361802363,1747816246870,-1000.0,0.00035506,2]
[361802364,1747816246880,-283.53,0.00035506,2]
[361802365,1747816246889,-440.0,0.00035513,5]
[361802366,1747816246899,-176.26514916,0.00035516,2]
[361802367,1747816246908,-210.53421741,0.00035516,2]
[361802368,1747816246918,-157.30090698,0.00035516,2]
[361802369,1747816246927,-1105.88004085,0.00035516,2]
[361802370,1747816246937,-154.71980584,0.00035516,7]
[361802371,1747816246948,-3309.62743058,0.00035516,2]
[361802372,1747816246957,-151.0,0.00035524,7]
[361802373,1747816246967,-152.618432,0.00035524,7]
[361802374,1747816246976,-151.0,0.00035524,7]
[361802375,1747816246985,-151.0,0.00035524,7]
[361802376,1747816247328,-151.0,0.00035524,7]
[361802377,1747816247340,-151.0,0.00035524,7]
[361802378,1747816247350,-405.245546,0.00035524,7]
[361802379,1747816247359,-405.245546,0.00035524,7]
[361802380,1747816247370,-2872.841711,0.00035524,7]
[361802381,1747816247381,-151.0,0.00035524,7]
[361802382,1747816247390,-2872.841711,0.00035524,7]
[361802383,1747816247400,-151.0,0.00035524,7]
[361802384,1747816247409,-151.0,0.00035524,7]
[361802385,1747816247419,-151.0,0.00035524,7]
[361802386,1747816247428,-1227.25,0.00035526,5]
[361802387,1747816247438,-1274.66,0.00035526,5]
[361802388,1747816247447,-12500.0,0.00035534,5]
[361802389,1747816247456,-283.53,0.00035542,2]
[361802390,1747816247466,-12500.0,0.00035543,5]
[361802391,1747816247475,-301.29,0.00035547,2]
[361802392,1747816247485,-301.99,0.00035547,2]
[361802393,1747816247494,-12500.0,0.00035552,5]
[361802394,1747816247503,-151.0,0.00035559,30]
[361802395,1747816247513,-151.0,0.00035559,30]
[361802396,1747816247522,-151.0,0.00035559,30]
[361802397,1747816247532,-151.0,0.00035559,30]
[361802398,1747816247542,-151.0,0.00035559,30]
[361802399,1747816247552,-151.0,0.00035559,30]
[361802400,1747816247562,-151.0,0.00035559,30]
[361802401,1747816247572,-151.0,0.00035559,30]
[361802402,1747816247583,-151.0,0.00035559,30]
[361802403,1747816247594,-151.0,0.00035559,30]
[361802404,1747816247604,-151.0,0.00035559,30]
[361802405,1747816247614,-151.0,0.00035559,30]
[361802406,1747816247624,-151.0,0.00035559,30]
[361802407,1747816247634,-151.0,0.00035559,30]
[361802408,1747816247643,-151.0,0.00035559,30]
[361802409,1747816247653,-151.0,0.00035559,30]
[361802410,1747816247663,-151.0,0.00035559,30]
[361802411,1747816247672,-151.0,0.00035559,30]
[361802412,1747816247681,-151.0,0.00035559,30]
[361802413,1747816247691,-151.0,0.00035559,30]
[361802414,1747816247700,-151.0,0.00035559,30]
[361802415,1747816247710,-151.0,0.00035559,30]
[361802416,1747816247720,-151.0,0.00035559,30]
[361802417,1747816247729,-151.0,0.00035559,30]
[361802418,1747816247739,-151.0,0.00035559,30]
[361802419,1747816247749,-151.0,0.00035559,30]
[361802420,1747816247758,-151.0,0.00035559,30]
[361802421,1747816247767,-151.0,0.00035559,30]
[361802422,1747816247777,-151.0,0.00035559,30]
[361802423,1747816247786,-198.0,0.00035559,30]
[361802424,1747816247796,-380.713424,0.00035559,7]
[361802425,1747816247807,-380.713424,0.00035559,7]
[361802426,1747816247816,-283.53,0.0003556,2]
[361802427,1747816247827,-12500.0,0.00035561,5]
[361802428,1747816247838,-12500.0,0.0003557,5]
[361802429,1747816247851,-8635.63265224,0.0003557,2]
[361802430,1747816247865,-150.052117,0.00035578,120]
[361802431,1747816247875,-12500.0,0.00035578,5]
[361802432,1747816247886,-403.89586698,0.0003558,120]
[361802433,1747816247895,-278.966219,0.00035585,7]
[361802434,1747816247906,-151.0,0.00035585,7]
[361802435,1747816247917,-151.0,0.00035585,7]
[361802436,1747816247928,-278.966219,0.00035585,7]
[361802437,1747816247940,-274.070288,0.00035585,7]
[361802438,1747816247950,-380.713424,0.00035585,7]
[361802439,1747816247960,-380.713424,0.00035585,7]
[361802440,1747816247969,-151.0,0.00035585,7]
[361802441,1747816247979,-267.042492,0.00035585,7]
[361802442,1747816247989,-151.0,0.00035585,7]
[361802443,1747816247999,-151.0,0.00035585,7]
[361802444,1747816248009,-152.895522,0.00035585,7]
[361802445,1747816248019,-151.0,0.00035585,7]
[361802446,1747816248029,-168.99989,0.00035585,7]
[361802447,1747816248039,-151.980985,0.00035585,7]
[361802448,1747816248049,-168.99989,0.00035585,7]
[361802449,1747816248058,-152.70218,0.00035585,7]
[361802450,1747816248068,-151.0,0.00035585,7]
[361802451,1747816248078,-151.0,0.00035585,7]
[361802452,1747816248088,-151.0,0.00035585,7]
[361802453,1747816248098,-151.0,0.00035585,7]
[361802454,1747816248107,-152.145215,0.00035585,7]
[361802455,1747816248117,-405.245546,0.00035585,7]
[361802456,1747816248127,-405.245546,0.00035585,7]
[361802457,1747816248137,-405.245546,0.00035585,7]
[361802458,1747816248146,-405.245546,0.00035585,7]
[361802459,1747816248156,-2872.841711,0.00035585,7]
[361802460,1747816248165,-151.0,0.00035585,7]
[361802461,1747816248175,-2872.841711,0.00035585,7]
[361802462,1747816248185,-151.0,0.00035585,7]
[361802463,1747816248194,-2872.841711,0.00035585,7]
[361802464,1747816248204,-2872.841711,0.00035585,7]
[361802465,1747816248214,-246.060018,0.00035585,7]
[361802466,1747816248223,-151.0,0.00035585,7]
[361802467,1747816248233,-151.0,0.00035585,7]
[361802468,1747816248243,-278.966219,0.00035587,7]
[361802469,1747816248253,-151.0,0.00035587,7]
[361802470,1747816248262,-151.0,0.00035587,7]
[361802471,1747816248272,-278.966219,0.00035587,7]
[361802472,1747816248281,-151.0,0.00035587,7]
[361802473,1747816248290,-151.0,0.00035587,7]
[361802474,1747816248300,-151.0,0.00035587,7]
[361802475,1747816248309,-151.0,0.00035587,7]
[361802476,1747816248319,-168.99989,0.00035587,7]
[361802477,1747816248329,-168.99989,0.00035587,7]
[361802478,1747816248339,-12500.0,0.00035587,5]
[361802479,1747816248349,-150.052117,0.00035588,120]
[361802480,1747816248359,-151.0,0.00035595,7]
[361802481,1747816248368,-151.0,0.00035595,7]
[361802482,1747816248378,-151.0,0.00035595,7]
[361802483,1747816248387,-151.0,0.00035595,7]
[361802484,1747816248397,-245.996319,0.00035595,7]
[361802485,1747816248406,-245.996319,0.00035595,7]
[361802486,1747816248415,-151.0,0.00035595,7]
[361802487,1747816248425,-151.0,0.00035595,7]
[361802488,1747816248434,-151.0,0.00035595,7]
[361802489,1747816248443,-151.0,0.00035595,7]
[361802490,1747816248453,-405.074098,0.00035595,7]
[361802491,1747816248462,-179.519862,0.00035595,7]
[361802492,1747816248472,-405.074098,0.00035595,7]
[361802493,1747816248482,-151.0,0.00035595,7]
[361802494,1747816248491,-151.0,0.00035595,7]
[361802495,1747816248501,-151.0,0.00035595,7]
[361802496,1747816248510,-151.0,0.00035595,7]
[361802497,1747816248520,-151.0,0.00035595,7]
[361802498,1747816248530,-151.0,0.00035595,7]
[361802499,1747816248539,-151.0,0.00035595,7]
[361802500,1747816248549,-151.0,0.00035595,7]
[361802501,1747816248558,-151.0,0.00035595,7]
[361802502,1747816248567,-151.0,0.00035595,7]
[361802503,1747816248578,-380.713424,0.00035595,7]
[361802504,1747816248587,-380.713424,0.00035595,7]
[361802505,1747816248596,-151.0,0.00035595,7]
[361802506,1747816248605,-12500.0,0.00035596,5]
[361802507,1747816248615,-151.0,0.00035596,7]
[361802508,1747816248624,-151.0,0.00035596,7]
[361802509,1747816248634,-225.413472,0.00035596,7]
[361802510,1747816248643,-151.0,0.00035596,7]
[361802511,1747816248652,-151.0,0.00035596,7]
[361802512,1747816248661,-151.0,0.00035596,7]
[361802513,1747816248670,-151.0,0.00035596,7]
[361802514,1747816248680,-151.0,0.00035596,7]
[361802515,1747816248689,-245.996319,0.00035596,7]
[361802516,1747816248698,-245.996319,0.00035596,7]
[361802517,1747816248708,-151.0,0.00035596,7]
[361802518,1747816248717,-151.0,0.00035596,7]
[361802519,1747816248726,-151.0,0.00035596,7]
[361802520,1747816248735,-151.0,0.00035596,7]
[361802521,1747816248745,-405.074098,0.00035596,7]
[361802522,1747816248754,-179.519862,0.00035596,7]
[361802523,1747816248764,-405.074098,0.00035596,7]
[361802524,1747816248774,-151.0,0.00035596,7]
[361802525,1747816248784,-151.0,0.00035596,7]
[361802526,1747816248793,-151.0,0.00035596,7]
[361802527,1747816248802,-151.0,0.00035596,7]
[361802528,1747816248812,-151.0,0.00035596,7]
[361802529,1747816248821,-151.0,0.00035596,7]
[361802530,1747816248830,-151.0,0.00035596,7]
[361802531,1747816248840,-151.0,0.00035596,7]
[361802532,1747816248850,-151.0,0.00035596,7]
[361802533,1747816248862,-150.052117,0.00035598,120]
[361802534,1747816248871,-2017.41383707,0.000356,2]
[361802535,1747816248881,-576.84,0.00035605,10]
[361802536,1747816248890,-151.0,0.00035605,7]
[361802537,1747816248899,-151.0,0.00035605,7]
[361802538,1747816248909,-151.0,0.00035605,7]
[361802539,1747816248919,-151.0,0.00035605,7]
[361802540,1747816248928,-151.0,0.00035605,7]
[361802541,1747816248938,-151.0,0.00035605,7]
[361802542,1747816248948,-151.0,0.00035605,7]
[361802543,1747816248958,-151.0,0.00035605,7]
[361802544,1747816248969,-151.0,0.00035605,7]
[361802545,1747816248978,-151.0,0.00035605,7]
[361802546,1747816248989,-151.0,0.00035605,7]
[361802547,1747816248999,-151.0,0.00035605,7]
[361802548,1747816249010,-245.996319,0.00035605,7]
[361802549,1747816249020,-245.996319,0.00035605,7]
[361802550,1747816249030,-245.996319,0.00035605,7]
[361802551,1747816249041,-245.996319,0.00035605,7]
[361802552,1747816249051,-500.0,0.00035605,5]
[361802553,1747816249061,-151.0,0.00035605,7]
[361802554,1747816249071,-151.0,0.00035605,7]
[361802555,1747816249081,-151.0,0.00035605,7]
[361802556,1747816249092,-405.074098,0.00035605,7]
[361802557,1747816249102,-405.074098,0.00035605,7]
[361802558,1747816249111,-179.519862,0.00035605,7]
[361802559,1747816249121,-179.519862,0.00035605,7]
[361802560,1747816249131,-405.074098,0.00035605,7]
[361802561,1747816249141,-405.074098,0.00035605,7]
[361802562,1747816249151,-151.0,0.00035605,7]
[361802563,1747816249160,-151.0,0.00035605,7]
[361802564,1747816249170,-151.0,0.00035605,7]
[361802565,1747816249180,-151.0,0.00035605,7]
[361802566,1747816249189,-151.0,0.00035605,7]
[361802567,1747816249199,-151.0,0.00035605,7]
[361802568,1747816249208,-151.0,0.00035605,7]
[361802569,1747816249218,-151.0,0.00035605,7]
[361802570,1747816249227,-151.0,0.00035605,7]
[361802571,1747816249237,-151.0,0.00035605,7]
[361802572,1747816249246,-5000.0,0.00035605,2]
[361802573,1747816249256,-151.0,0.00035605,7]
[361802574,1747816249265,-151.0,0.00035605,7]
[361802575,1747816249275,-151.0,0.00035605,7]
[361802576,1747816249284,-1252.39,0.00035606,5]
[361802577,1747816249293,-284.46693505,0.00035606,2]
[361802578,1747816249303,-151.0,0.00035606,7]
[361802579,1747816249312,-151.0,0.00035606,7]
[361802580,1747816249323,-200.0,0.00035606,2]
[361802581,1747816249332,-401.86923307,0.00035606,7]
[361802582,1747816249342,-151.0,0.00035606,7]
[361802583,1747816249350,-251.604879,0.00035606,7]
[361802584,1747816249360,-151.0,0.00035606,7]
[361802585,1747816249370,-151.683105,0.00035606,7]
[361802586,1747816249380,-200.0,0.00035606,2]
[361802587,1747816249390,-1270.01,0.00035606,5]
[361802588,1747816249400,-1225.6,0.00035606,5]
[361802589,1747816249409,-282.46428512,0.00035611,7]
[361802590,1747816249419,-1188.0,0.00035611,7]
[361802591,1747816249429,-1188.0,0.00035611,7]
[361802592,1747816249438,-1188.0,0.00035611,7]
[361802593,1747816249447,-1188.0,0.00035611,7]
[361802594,1747816249457,-1208.68612271,0.00035611,7]
[361802595,1747816249467,-155.343,0.00035615,2]
[361802596,1747816249476,-151.0,0.00035615,7]
[361802597,1747816249485,-259.6475,0.00035615,2]
[361802598,1747816249495,-1000.0,0.00035615,15]
[361802599,1747816249504,-150.0,0.00035615,2]
[361802600,1747816249514,-1272.09,0.00035616,5]
[361802601,1747816249523,-250.0,0.00035616,2]
[361802602,1747816249532,-250.0,0.00035616,2]
[361802603,1747816249542,-250.0,0.00035616,2]
[361802604,1747816249552,-250.0,0.00035616,2]
[361802605,1747816249561,-250.0,0.00035616,5]
[361802606,1747816249570,-250.0,0.00035616,5]
[361802607,1747816249580,-420.0,0.00035616,5]
[361802608,1747816249590,-500.4919986,0.00035616,5]
[361802609,1747816249600,-420.0,0.00035616,5]
[361802610,1747816249609,-420.0,0.00035616,5]
[361802611,1747816249617,-420.0,0.00035616,5]
[361802612,1747816249627,-420.0,0.00035616,5]
[361802613,1747816249636,-420.0,0.00035616,5]
[361802614,1747816249645,-420.0,0.00035616,5]
[361802615,1747816249654,-420.0,0.00035616,5]
[361802616,1747816249663,-152.44589703,0.00035616,5]
[361802617,1747816249673,-449.03809683,0.00035616,5]
[361802618,1747816249682,-420.0,0.00035616,5]
[361802619,1747816249692,-420.0,0.00035616,5]
[361802620,1747816249701,-420.0,0.00035616,5]
[361802621,1747816249711,-420.0,0.00035616,5]
[361802622,1747816249720,-181.65004279,0.00035616,5]
[361802623,1747816249730,-420.0,0.00035616,5]
[361802624,1747816249740,-420.0,0.00035616,5]
[361802625,1747816249750,-420.0,0.00035616,5]
[361802626,1747816249760,-420.0,0.00035616,5]
[361802627,1747816249770,-420.0,0.00035616,5]
[361802628,1747816249781,-420.0,0.00035616,5]
[361802629,1747816249790,-420.0,0.00035616,5]
[361802630,1747816249800,-420.0,0.00035616,5]
[361802631,1747816249809,-420.0,0.00035616,5]
[361802632,1747816249818,-420.0,0.00035616,5]
[361802633,1747816249829,-420.0,0.00035616,5]
[361802634,1747816249840,-420.0,0.00035616,5]
[361802635,1747816249849,-420.0,0.00035616,5]
[361802636,1747816249861,-420.0,0.00035616,5]
[361802637,1747816249870,-420.0,0.00035616,5]
[361802638,1747816249879,-420.0,0.00035616,5]
[361802639,1747816249888,-420.0,0.00035616,5]
[361802640,1747816249898,-420.0,0.00035616,5]
[361802641,1747816249908,-420.0,0.00035616,5]
[361802642,1747816249917,-420.0,0.00035616,5]
[361802643,1747816249927,-151.0,0.00035616,7]
[361802644,1747816249939,-420.0,0.00035616,5]
[361802645,1747816249948,-420.0,0.00035616,5]
[361802646,1747816249957,-420.0,0.00035616,5]
[361802647,1747816249967,-420.0,0.00035616,5]
[361802648,1747816249977,-420.0,0.00035616,5]
[361802649,1747816249986,-420.0,0.00035616,5]
[361802650,1747816249996,-152.716884,0.00035616,7]
[361802651,1747816250005,-420.0,0.00035616,5]
[361802652,1747816250014,-420.0,0.00035616,5]
[361802653,1747816250027,-181.12065254,0.00035616,5]
[361802654,1747816250038,-260.10292389,0.00035616,5]
[361802655,1747816250047,-420.0,0.00035616,5]
[361802656,1747816250056,-420.0,0.00035616,5]
[361802657,1747816250066,-420.0,0.00035616,5]
[361802658,1747816250076,-168.389398,0.00035616,5]
[361802659,1747816250088,-420.0,0.00035616,5]
[361802660,1747816250098,-420.0,0.00035616,5]
[361802661,1747816250108,-420.0,0.00035616,5]
[361802662,1747816250117,-420.0,0.00035616,5]
[361802663,1747816250127,-420.0,0.00035616,5]
[361802664,1747816250137,-420.0,0.00035616,5]
[361802665,1747816250146,-517.55533746,0.00035616,5]
[361802666,1747816250156,-153.181242,0.00035616,5]
[361802667,1747816250167,-420.0,0.00035616,5]
[361802668,1747816250176,-420.0,0.00035616,5]
[361802669,1747816250186,-420.0,0.00035616,5]
[361802670,1747816250196,-420.0,0.00035616,5]
[361802671,1747816250205,-420.0,0.00035616,5]
[361802672,1747816250215,-420.0,0.00035616,5]
[361802673,1747816250225,-420.0,0.00035616,5]
[361802674,1747816250234,-420.0,0.00035616,5]
[361802675,1747816250243,-420.0,0.00035616,5]
[361802676,1747816250254,-420.0,0.00035616,5]
[361802677,1747816250264,-400.0,0.00035616,60]
[361802678,1747816250273,-420.0,0.00035616,5]
[361802679,1747816250283,-420.0,0.00035616,5]
[361802680,1747816250292,-1007.41,0.00035616,5]
[361802681,1747816250301,-420.0,0.00035616,5]
[361802682,1747816250312,-165.411059,0.00035616,5]
[361802683,1747816250322,-420.0,0.00035616,5]
[361802684,1747816250332,-420.0,0.00035616,5]
[361802685,1747816250342,-420.0,0.00035616,5]
[361802686,1747816250351,-420.0,0.00035616,5]
[361802687,1747816250362,-738.19,0.00035616,5]
[361802688,1747816250371,-420.0,0.00035616,5]
[361802689,1747816250380,-610.44,0.00035616,5]
[361802690,1747816250390,-448.51357612,0.00035616,5]
[361802691,1747816250399,-412.90564634,0.00035616,5]
[361802692,1747816250409,-420.0,0.00035616,5]
[361802693,1747816250418,-420.0,0.00035616,5]
[361802694,1747816250428,-420.0,0.00035616,5]
[361802695,1747816250437,-420.0,0.00035616,5]
[361802696,1747816250447,-420.0,0.00035616,5]
[361802697,1747816250457,-420.0,0.00035616,5]
[361802698,1747816250467,-420.0,0.00035616,5]
[361802699,1747816250477,-846.13,0.00035616,5]
[361802700,1747816250487,-785.1,0.00035616,5]
[361802701,1747816250497,-151.0,0.00035616,7]
[361802702,1747816250507,-420.0,0.00035616,5]
[361802703,1747816250519,-420.0,0.00035616,5]
[361802704,1747816250529,-420.0,0.00035616,5]
[361802705,1747816250539,-420.0,0.00035616,5]
[361802706,1747816250548,-819.41,0.00035616,5]
[361802707,1747816250558,-420.0,0.00035616,5]
[361802708,1747816250568,-420.0,0.00035616,5]
[361802709,1747816250577,-584.79,0.00035616,5]
[361802710,1747816250588,-711.68,0.00035616,5]
[361802711,1747816250598,-420.0,0.00035616,5]
[361802712,1747816250608,-2002.57,0.00035616,5]
[361802713,1747816250618,-233.20726137,0.00035616,5]
[361802714,1747816251815,-880.0,0.0003304,2]
[361802715,1747816251829,-490.77273863,0.00035616,5]
[361802716,1747816251843,-420.0,0.00035616,5]
[361802717,1747816251857,-837.16,0.00035616,5]
[361802718,1747816251873,-420.0,0.00035616,5]
[361802719,1747816251885,-1298.54,0.00035616,5]
[361802720,1747816251899,-420.0,0.00035616,5]
[361802721,1747816251914,-491.8,0.00035616,5]
[361802722,1747816251927,-496.93,0.00035616,5]
[361802723,1747816251940,-420.0,0.00035616,5]
[361802724,1747816251956,-420.0,0.00035616,5]
[361802725,1747816251969,-1589.36,0.00035616,5]
[361802726,1747816251983,-610.81,0.00035616,5]
[361802727,1747816251996,-420.0,0.00035616,5]
[361802728,1747816252011,-420.0,0.00035616,5]
[361802729,1747816252024,-597.45,0.00035616,5]
[361802730,1747816252039,-597.45,0.00035616,5]
[361802731,1747816252053,-597.45,0.00035616,5]
[361802732,1747816252067,-597.45,0.00035616,5]
[361802733,1747816252082,-597.45,0.00035616,5]
[361802734,1747816252095,-597.45,0.00035616,5]
[361802735,1747816252109,-597.45,0.00035616,5]
[361802736,1747816252123,-597.45,0.00035616,5]
[361802737,1747816252137,-597.45,0.00035616,5]
[361802738,1747816252151,-597.45,0.00035616,5]
[361802739,1747816252166,-597.45,0.00035616,5]
[361802740,1747816252179,-471.14,0.00035616,5]
[361802741,1747816252193,-597.45,0.00035616,5]
[361802742,1747816252205,-597.45,0.00035616,5]
[361802743,1747816252218,-597.45,0.00035616,5]
[361802744,1747816252231,-420.0,0.00035616,5]
[361802745,1747816252244,-597.45,0.00035616,5]
[361802746,1747816252258,-902.56,0.00035616,5]
[361802747,1747816252272,-692.69,0.00035616,5]
[361802748,1747816252286,-621.07,0.00035616,5]
[361802749,1747816252300,-479.23,0.00035616,5]
[361802750,1747816252314,-736.06,0.00035616,5]
[361802751,1747816252328,-746.05,0.00035616,5]
[361802752,1747816252342,-420.0,0.00035616,5]
[361802753,1747816252355,-420.0,0.00035616,5]
[361802754,1747816252368,-580.78,0.00035616,5]
[361802755,1747816252382,-937.66,0.00035616,5]
[361802756,1747816252395,-589.97,0.00035616,5]
[361802757,1747816252409,-420.0,0.00035616,5]
[361802758,1747816252421,-420.0,0.00035616,5]
[361802759,1747816252434,-420.0,0.00035616,5]
[361802760,1747816252447,-420.0,0.00035616,5]
[361802761,1747816252460,-420.0,0.00035616,5]
[361802762,1747816252473,-151.0,0.00035616,7]
[361802763,1747816252487,-420.0,0.00035616,5]
[361802764,1747816252500,-151.0,0.00035616,7]
[361802765,1747816252513,-370.79231888,0.00035616,5]
[361802766,1747816252526,-853.35,0.00035616,5]
[361802767,1747816252539,-1345.14,0.00035616,5]
[361802768,1747816252552,-893.2,0.00035616,5]
[361802769,1747816252564,-420.0,0.00035616,5]
[361802770,1747816252576,-420.0,0.00035616,5]
[361802771,1747816252588,-420.0,0.00035616,5]
[361802772,1747816252603,-938.99,0.00035616,5]
[361802773,1747816252615,-595.42,0.00035616,5]
[361802774,1747816252628,-420.0,0.00035616,5]
[361802775,1747816252641,-420.0,0.00035616,5]
[361802776,1747816252653,-420.0,0.00035616,5]
[361802777,1747816252665,-420.0,0.00035616,5]
[361802778,1747816252678,-420.0,0.00035616,5]
[361802779,1747816252691,-420.0,0.00035616,5]
[361802780,1747816252704,-508.48,0.00035616,5]
[361802781,1747816252716,-163.593229,0.00035616,5]
[361802782,1747816252729,-420.0,0.00035616,5]
[361802783,1747816252742,-420.0,0.00035616,5]
[361802784,1747816252755,-420.0,0.00035616,5]
[361802785,1747816252767,-420.0,0.00035616,5]
[361802786,1747816252779,-1582.98,0.00035616,5]
[361802787,1747816252791,-1076.4,0.00035616,5]
[361802788,1747816252804,-420.0,0.00035616,5]
[361802789,1747816252818,-420.0,0.00035616,5]
[361802790,1747816252831,-433.46,0.00035616,5]
[361802791,1747816252844,-1270.18,0.00035616,5]
[361802792,1747816252856,-420.0,0.00035616,5]
[361802793,1747816252871,-529.05,0.00035616,5]
[361802794,1747816252883,-512.19,0.00035616,5]
[361802795,1747816252895,-420.0,0.00035616,5]
[361802796,1747816252909,-420.0,0.00035616,5]
[361802797,1747816252921,-604.57,0.00035616,5]
[361802798,1747816252934,-420.0,0.00035616,5]
[361802799,1747816252947,-420.0,0.00035616,5]
[361802800,1747816252959,-420.0,0.00035616,5]
[361802801,1747816252971,-420.0,0.00035616,5]
[361802802,1747816252984,-420.0,0.00035616,5]
[361802803,1747816252997,-420.0,0.00035616,5]
[361802804,1747816253009,-1248.26,0.00035616,5]
[361802805,1747816253021,-1590.83,0.00035616,5]
[361802806,1747816253034,-420.0,0.00035616,5]
[361802807,1747816253052,-420.0,0.00035616,5]
[361802808,1747816253064,-1020.36,0.00035616,5]
[361802809,1747816253076,-588.23,0.00035616,5]
[361802810,1747816253090,-420.0,0.00035616,5]
[361802811,1747816253103,-420.0,0.00035616,5]
[361802812,1747816253116,-420.0,0.00035616,5]
[361802813,1747816253129,-420.0,0.00035616,5]
[361802814,1747816253141,-1016.35,0.00035616,5]
[361802815,1747816253153,-539.52142849,0.00035616,5]
[361802816,1747816253165,-644.43,0.00035616,5]
[361802817,1747816253177,-420.0,0.00035616,5]
[361802818,1747816253191,-420.0,0.00035616,5]
[361802819,1747816253203,-420.0,0.00035616,5]
[361802820,1747816253215,-2042.84,0.00035616,5]
[361802821,1747816253227,-400.0,0.00035616,5]
[361802822,1747816253238,-420.0,0.00035616,5]
[361802823,1747816253249,-420.0,0.00035616,5]
[361802824,1747816253260,-1520.26,0.00035616,5]
[361802825,1747816253272,-434.19,0.00035616,5]
[361802826,1747816253284,-497.98,0.00035616,5]
[361802827,1747816253296,-1690.48,0.00035616,5]
[361802828,1747816253308,-420.0,0.00035616,5]
[361802829,1747816253320,-174.993389,0.00035616,5]
[361802830,1747816253332,-1034.4,0.00035616,5]
[361802831,1747816253345,-524.23,0.00035616,5]
[361802832,1747816253358,-420.0,0.00035616,5]
[361802833,1747816253370,-420.0,0.00035616,5]
[361802834,1747816253383,-420.0,0.00035616,5]
[361802835,1747816253394,-420.0,0.00035616,5]
[361802836,1747816253407,-420.0,0.00035616,5]
[361802837,1747816253418,-420.0,0.00035616,5]
[361802838,1747816253431,-420.0,0.00035616,5]
[361802839,1747816253443,-520.84880493,0.00035616,5]